bitfinex/quotes_SOLUSD_20240827
["timestamp","ask_amount","ask_price","bid_price","bid_amount"]
[1724728839287,9.85286292,158.18,158.13,15.8097]
[1724728839483,9.85286292,158.16,158.13,15.8097]
[1724728839962,9.85286292,158.16,158.13,22.1335]
[1724728840883,16.17476292,158.18,158.13,22.1335]
[1724728841881,9.85286292,158.16,158.1,15.8126]
[1724728842677,9.85286292,158.16,158.12,6.3242]
[1724728844789,6.3223,158.17,158.13,6.3239]
[1724728850620,9.85286292,158.16,158.1,15.8126]
[1724728850762,9.85286292,158.14,158.1,15.8126]
[1724728851396,10.45692155,158.14,158.1,15.8126]
[1724728851579,10.45692155,158.14,158.06,47.448]
[1724728851768,9.85286292,158.12,158.09,6.3254]
[1724728852476,16.17636292,158.14,158.09,6.3254]
[1724728853568,32.49196292,158.15,158.1,6.325]
[1724728853767,0.60405863,158.14,158.1,6.325]
[1724728854595,32.49196292,158.15,158.1,6.325]
[1724728856294,0.60405863,158.14,158.1,6.325]
[1724728856591,32.49196292,158.15,158.1,6.325]
[1724728856791,32.49196292,158.15,158.09,6.3254]
[1724728856792,6.92755863,158.14,158.09,6.3254]
[1724728856997,9.85286292,158.13,158.09,6.3254]
[1724728857296,0.60405863,158.12,158.09,6.3254]
[1724728860204,9.85286292,158.13,158.09,6.3254]
[1724728862404,22.6391,158.15,158.1,6.325]
[1724728864999,22.6391,158.15,158.11,6.3244]
[1724728865000,16.316,158.15,158.11,6.3244]
[1724728865383,0.60405863,158.14,158.1,22.1369]
[1724728865908,6.92755863,158.14,158.1,15.8121]
[1724728868294,6.92755863,158.14,158.1,22.1371]
[1724728868492,6.3235,158.14,158.1,22.1371]
[1724728869403,32.49196292,158.15,158.1,22.1371]
[1724728870197,0.60405863,158.14,158.1,22.1371]
[1724728870912,6.3239,158.13,158.09,6.3254]
[1724728871093,0.60405863,158.12,158.09,6.3254]
[1724728872319,0.60405863,158.13,158.09,6.3254]
[1724728873514,9.85286292,158.1,158.03,15.8193]
[1724728873686,9.85286292,158.08,158.03,15.8193]
[1724728874022,9.85286292,158.08,158.05,6.3271]
[1724728874197,21.8081,158.12,158.06,17.08193843]
[1724728874512,6.3235,158.14,158.06,17.08193843]
[1724728874716,16.17596292,158.15,158.09,6.3251]
[1724728875017,16.78002155,158.15,158.09,6.3251]
[1724728875313,6.92715863,158.15,158.09,6.3251]
[1724728875480,16.17596292,158.15,158.09,6.3251]
[1724728876088,6.3236,158.14,158.09,7.59004468]
[1724728876709,6.3236,158.14,158.09,6.3251]
[1724728876889,16.17686292,158.13,158.08,22.1396]
[1724728877214,0.60405863,158.12,158.08,22.1396]
[1724728879988,9.85286292,158.11,158.04,15.8181]
[1724728880234,0.60405863,158.1,158.06,6.3266]
[1724728880536,16.17896292,158.08,158.04,15.8181]
[1724728880809,0.60405863,158.07,158.04,15.8181]
[1724728881522,0.60405863,158.07,158.04,22.1455]
[1724728881809,9.85286292,158.08,158.04,22.1455]
[1724728882184,21.5018,158.09,158.04,22.1455]
[1724728882185,15.1763,158.09,158.05,6.3271]
[1724728882422,15.1763,158.09,158.05,1.2653077]
[1724728882721,6.3246,158.12,158.05,45.0]
[1724728883710,6.3246,158.12,158.07,6.3261]
[1724728884217,0.60405863,158.11,158.07,6.3261]
[1724728886303,0.60405863,158.1,158.05,6.3267]
[1724728886509,6.92925863,158.1,158.05,6.3267]
[1724728889809,16.17846292,158.09,158.04,22.1454]
[1724728890004,0.60405863,158.08,158.04,22.1454]
[1724728890515,16.78252155,158.09,158.04,22.1454]
[1724728891029,6.3259,158.08,158.04,15.8181]
[1724728891225,0.60405863,158.07,158.04,15.8181]
[1724728891530,6.3259,158.08,158.04,15.8181]
[1724728892212,16.17836292,158.09,158.04,23.41085883]
[1724728892401,16.17836292,158.09,158.04,22.1455]
[1724728893925,15.8235,158.08,158.04,22.1455]
[1724728894904,15.8235,158.08,158.05,6.327]
[1724728895111,25.67636292,158.12,158.05,1.26526612]
[1724728895309,26.28042155,158.12,158.05,45.0]
[1724728896727,6.3247,158.11,158.06,6.3266]
[1724728897337,0.60405863,158.1,158.06,6.3266]
[1724728898113,10.45692155,158.1,158.04,15.8181]
[1724728899719,6.3255,158.09,158.04,22.1455]
[1724728900119,12.94389683,158.11,158.05,7.59234707]
[1724728900332,13.54795546,158.11,158.06,6.3265]
[1724728900917,13.54795546,158.11,158.04,22.1455]
[1724728900918,6.3255,158.09,158.04,22.1455]
[1724728902521,6.3255,158.09,158.05,6.3271]
[1724728905134,6.61889683,158.11,158.07,15.8156]
[1724728905334,12.7447,158.14,158.08,1.26494656]
[1724728906845,12.7447,158.14,158.09,6.3254]
[1724728907428,6.4209,158.14,158.09,6.3254]
[1724728907634,22.7921462,158.15,158.1,7.58992036]
[1724728907844,16.17596292,158.15,158.1,6.325]
[1724728917151,6.3231,158.15,158.1,6.325]
[1724728919164,0.60405863,158.14,158.1,6.325]
[1724728919334,0.60405863,158.14,158.11,6.3246]
[1724728919849,0.60405863,158.14,158.1,6.325]
[1724728920661,10.45692155,158.14,158.09,22.1382]
[1724728920951,16.78062155,158.14,158.09,22.1382]
[1724728925550,6.324,158.13,158.09,15.8128]
[1724728927949,6.3246,158.12,158.05,22.0641]
[1724728928137,9.85286292,158.14,158.06,46.26506613]
[1724728928960,6.3243,158.12,158.07,6.3262]
[1724728929135,0.60405863,158.11,158.07,6.3262]
[1724728929540,6.92835863,158.12,158.07,6.3262]
[1724728930338,6.3243,158.12,158.07,6.3262]
[1724728930544,16.78122155,158.12,158.07,6.3262]
[1724728931965,16.17716292,158.12,158.07,6.3262]
[1724728933551,16.78122155,158.12,158.07,6.3262]
[1724728934269,6.92875863,158.11,158.07,6.3262]
[1724728934567,6.3247,158.11,158.07,6.3262]
[1724728935155,6.3243,158.12,158.07,6.3262]
[1724728940350,6.3247,158.11,158.07,6.3262]
[1724728940553,0.60405863,158.1,158.07,6.3262]
[1724728940765,6.3247,158.11,158.07,6.3262]
[1724728942362,0.60405863,158.1,158.07,6.3262]
[1724728943088,13.17528014,158.13,158.08,7.59085663]
[1724728943262,6.5563,158.13,158.09,1.26500213]
[1724728943661,6.5563,158.13,158.08,6.3258]
[1724728943982,6.5563,158.13,158.09,1.26498031]
[1724728944168,6.5563,158.13,158.08,6.3258]
[1724728944764,16.47097997,158.15,158.09,7.59038301]
[1724728945263,6.3239,158.13,158.09,6.3254]
[1724728946278,6.3239,158.13,158.08,6.3258]
[1724728946663,16.17676292,158.13,158.08,6.3258]
[1724728947768,16.17676292,158.13,158.07,22.1412]
[1724728947769,6.92845863,158.12,158.07,22.1412]
[1724728956797,9.85286292,158.09,158.04,15.8185]
[1724728956970,16.17916292,158.07,158.01,15.8213]
[1724728957169,16.17916292,158.07,158.02,6.3282]
[1724728957483,9.85286292,158.07,158.03,7.59336473]
[1724728958294,9.85286292,158.07,158.03,6.3279]
[1724728961093,9.85286292,158.07,158.01,15.8213]
[1724728961094,16.17836292,158.09,158.04,7.59279617]
[1724728961978,16.17836292,158.09,158.04,6.3274]
[1724728962173,9.85286292,158.09,158.05,6.327]
[1724728962379,6.3252,158.1,158.05,6.327]
[1724728963181,6.92925863,158.1,158.05,6.327]
[1724728964703,6.3252,158.1,158.05,6.327]
[1724728967275,40.08460542,158.11,158.05,6.327]
[1724728967276,45.80524679,158.11,158.06,6.3266]
[1724728967475,29.62768387,158.11,158.06,17.08116318]
[1724728967695,23.00248387,158.11,158.06,17.08116318]
[1724728967898,16.3848,158.11,158.06,17.08116318]
[1724728968787,16.3848,158.11,158.08,6.3256]
[1724728970002,16.3848,158.11,158.06,22.1424]
[1724728970301,16.98885863,158.11,158.06,22.1424]
[1724728971594,23.31355863,158.11,158.06,22.1424]
[1724728972907,22.7095,158.11,158.06,22.1424]
[1724728973534,6.3235,158.14,158.09,6.3254]
[1724728973709,29.6263435,158.15,158.11,6.3243]
[1724728974011,23.01,158.15,158.11,6.3243]
[1724728974693,23.01,158.15,158.11,7.58907663]
[1724728975699,23.01,158.15,158.11,6.3243]
[1724728976515,29.3334,158.15,158.1,15.8121]
[1724728978906,39.18626292,158.15,158.1,15.8121]
[1724728979500,29.3334,158.15,158.1,22.1371]
[1724728979694,23.01,158.15,158.11,1.26482495]
[1724728979893,16.3848,158.15,158.1,15.8121]
[1724728980103,16.3848,158.15,158.12,6.3242]
[1724728980485,16.3848,158.15,158.11,6.3246]
[1724728980810,0.60405863,158.14,158.1,22.1371]
[1724728981309,22.7079,158.15,158.1,22.1371]
[1724728982519,9.85286292,158.14,158.1,22.1371]
[1724728984729,22.7079,158.15,158.1,22.1371]
[1724728991827,16.3848,158.15,158.11,1.26486774]
[1724728992011,6.61536099,158.17,158.11,1.26486774]
[1724728992012,6.61536099,158.17,158.16,6.3227]
[1724728992325,22.5595,158.19,158.16,6.3227]
[1724728995344,6.61633691,158.22,158.18,6.3219]
[1724728996115,22.8796,158.23,158.18,7.58609772]
[1724728996441,22.8796,158.23,158.19,6.3214]
[1724728996655,16.3197,158.23,158.2,7.58509512]
[1724728997015,0.822621,158.25,158.21,1.26401739]
[1724728997230,381.3,158.24,158.21,1.26401739]
[1724728998256,381.3,158.24,158.2,6.321]
[1724729000251,0.822621,158.25,158.2,6.321]
[1724729001340,9.85286292,158.24,158.19,15.8032]
[1724729002718,9.85286292,158.24,158.19,22.1245]
[1724729004560,9.85286292,158.21,158.12,14.0189]
[1724729004758,22.6403,158.22,158.17,6.3222]
[1724729004963,9.85286292,158.2,158.14,15.8087]
[1724729005256,16.3197,158.22,158.18,6.3215]
[1724729005625,16.3197,158.22,158.17,15.8051]
[1724729005626,26.17256292,158.22,158.17,22.1272]
[1724729006030,32.49286292,158.22,158.17,22.1272]
[1724729006342,16.3197,158.22,158.18,7.58618469]
[1724729006544,16.3197,158.22,158.18,6.3219]
[1724729006731,26.17256292,158.22,158.18,6.3219]
[1724729007145,16.17426292,158.2,158.14,15.8087]
[1724729007439,22.8796,158.22,158.14,15.8087]
[1724729007440,9.85286292,158.18,158.14,22.1318]
[1724729013364,22.79104044,158.2,158.15,7.58749205]
[1724729013663,16.17396292,158.2,158.15,7.58749205]
[1724729015345,9.85286292,158.2,158.16,6.3226]
[1724729017845,9.85286292,158.2,158.14,22.1318]
[1724729018175,0.60405863,158.19,158.14,15.8087]
[1724729018463,16.17396292,158.2,158.14,15.8087]
[1724729019751,16.17396292,158.2,158.15,6.323]
[1724729021574,16.17396292,158.2,158.16,1.26446047]
[1724729022972,9.85286292,158.2,158.16,7.58706047]
[1724729023663,9.85286292,158.2,158.16,6.3226]
[1724729024871,9.85286292,158.18,158.11,15.8115]
[1724729025079,9.85286292,158.18,158.13,6.3238]
[1724729025784,9.85286292,158.18,158.14,6.3233]
[1724729026175,15.3503,158.17,158.14,6.3233]
[1724729029676,15.3503,158.17,158.12,51.324]
[1724729029971,15.95435863,158.17,158.12,45.0]
[1724729030877,15.3503,158.17,158.13,6.3237]
[1724729031073,6.3228,158.16,158.11,15.8115]
[1724729031265,0.60405863,158.15,158.11,15.8115]
[1724729031464,9.85286292,158.16,158.12,7.58896865]
[1724729031868,9.85286292,158.16,158.12,6.3242]
[1724729032266,21.4586,158.17,158.13,7.58819652]
[1724729032662,21.4586,158.17,158.13,6.3235]
[1724729033759,27.7809,158.17,158.12,6.3242]
[1724729034756,9.85286292,158.16,158.12,6.3242]
[1724729035675,10.45692155,158.16,158.12,6.3242]
[1724729037171,9.85286292,158.16,158.12,6.3242]
[1724729038262,16.17556292,158.16,158.11,22.1361]
[1724729040467,6.3231,158.15,158.11,15.8115]
[1724729040669,0.60405863,158.14,158.11,15.8115]
[1724729040887,9.85286292,158.12,158.08,15.8146]
[1724729041069,0.60405863,158.11,158.07,6.3262]
[1724729042080,9.85286292,158.1,158.06,6.3266]
[1724729043177,22.47936292,158.12,158.07,7.59131219]
[1724729044397,22.47936292,158.12,158.07,6.3262]
[1724729050467,9.85286292,158.1,158.07,6.3262]
[1724729050683,9.85286292,158.08,158.05,22.1444]
[1724729050889,26.01066292,158.08,158.05,22.1444]
[1724729051997,26.01066292,158.08,158.05,15.8175]
[1724729053981,16.1578,158.08,158.05,23.40981414]
[1724729054502,16.1578,158.08,158.05,22.1444]
[1724729055397,21.8552,158.12,158.05,15.8175]
[1724729055590,21.8552,158.12,158.03,31.6388]
[1724729055591,21.8552,158.12,158.09,6.3254]
[1724729058802,21.8552,158.12,158.09,7.59036499]
[1724729059496,21.8552,158.12,158.09,6.3254]
[1724729063403,6.6208013,158.14,158.1,17.07686726]
[1724729063704,27.916,158.16,158.11,7.58952033]
[1724729067493,21.5932,158.16,158.12,6.3242]
[1724729068591,9.85286292,158.15,158.12,6.3242]
[1724729072429,9.85286292,158.13,158.1,15.8119]
[1724729073687,9.85286292,158.13,158.1,22.1369]
[1724729076884,9.85286292,158.13,158.07,15.8154]
[1724729077090,9.85286292,158.11,158.07,15.8154]
[1724729078495,16.17756292,158.11,158.07,15.8154]
[1724729078920,9.85286292,158.09,158.05,6.327]
[1724729079105,0.60405863,158.08,158.04,15.8184]
[1724729079417,9.85286292,158.09,158.04,15.8184]
[1724729079997,9.85286292,158.07,158.04,15.8184]
[1724729080823,9.85286292,158.07,158.04,22.1459]
[1724729084731,6.3256,158.09,158.05,6.327]
[1724729084732,9.85286292,158.09,158.05,6.327]
[1724729085021,9.85286292,158.09,158.05,7.59235245]
[1724729085213,9.85286292,158.09,158.05,6.327]
[1724729085515,9.85286292,158.09,158.05,7.5923069]
[1724729086520,22.95420115,158.1,158.06,6.3266]
[1724729086700,22.95420115,158.1,158.07,1.26512154]
[1724729086907,16.3336,158.1,158.07,1.26512154]
[1724729087121,6.62050967,158.13,158.07,1.26512154]
[1724729087324,6.62050967,158.13,158.08,1.26496818]
[1724729087508,6.62050967,158.13,158.08,7.59086818]
[1724729088027,6.62050967,158.13,158.08,6.3259]
[1724729088839,12.94450967,158.13,158.08,6.3259]
[1724729091725,12.94450967,158.13,158.06,15.8157]
[1724729091726,6.3247,158.11,158.06,15.8157]
[1724729091908,10.45692155,158.12,158.06,22.142]
[1724729092309,10.45692155,158.12,158.07,6.3261]
[1724729092622,10.45692155,158.12,158.06,15.8157]
[1724729093210,10.45692155,158.12,158.07,6.3262]
[1724729093406,16.78122155,158.12,158.07,6.3262]
[1724729095430,9.85286292,158.12,158.07,6.3262]
[1724729095619,9.85286292,158.12,158.07,7.59127226]
[1724729095929,9.85286292,158.12,158.07,6.3262]
[1724729098939,16.17716292,158.12,158.07,6.3262]
[1724729099240,16.17716292,158.12,158.07,7.5913161]
[1724729099815,16.17716292,158.12,158.07,6.3262]
[1724729100025,6.3243,158.12,158.07,6.3262]
[1724729100210,12.94440967,158.13,158.08,6.3259]
[1724729100410,6.3239,158.13,158.08,7.59101436]
[1724729101219,6.3239,158.13,158.08,6.3259]
[1724729101421,0.60405863,158.12,158.08,6.3259]
[1724729102715,9.85286292,158.1,158.06,15.8157]
[1724729102910,9.85286292,158.1,158.06,22.1422]
[1724729103426,10.45692155,158.1,158.06,22.1422]
[1724729103630,10.45692155,158.1,158.06,15.8157]
[1724729104738,16.17876292,158.08,158.03,22.1473]
[1724729105122,16.17876292,158.08,158.04,6.3275]
[1724729105320,9.85286292,158.08,158.04,6.3275]
[1724729106444,31.86972155,158.09,158.04,6.3275]
[1724729107043,31.26566292,158.09,158.04,7.59286469]
[1724729107242,25.54422155,158.09,158.03,15.8195]
[1724729108825,31.86972155,158.09,158.04,6.3274]
[1724729110133,31.26566292,158.09,158.04,6.3274]
[1724729110924,31.26566292,158.09,158.04,7.59276457]
[1724729112544,31.86972155,158.09,158.04,6.3274]
[1724729113961,31.26566292,158.09,158.04,6.3274]
[1724729114465,31.86972155,158.09,158.04,6.3274]
[1724729114627,31.26566292,158.09,158.04,6.3274]
[1724729115742,6.3259,158.08,158.04,6.3274]
[1724729116354,6.3259,158.08,158.03,22.1473]
[1724729116531,9.85286292,158.07,158.03,22.1473]
[1724729116731,0.60405863,158.06,158.03,22.1473]
[1724729119770,9.85286292,158.07,158.03,22.1473]
[1724729121656,15.0873,158.09,158.04,1.26548709]
[1724729122161,15.0873,158.09,158.05,6.3267]
[1724729122344,15.0873,158.09,158.05,7.59192421]
[1724729122931,15.0873,158.09,158.05,6.3267]
[1724729125247,15.69135863,158.09,158.05,6.3267]
[1724729125445,15.0873,158.09,158.05,6.3267]
[1724729127935,21.4128,158.09,158.05,6.3267]
[1724729128442,15.0873,158.09,158.05,6.3267]
[1724729130144,15.0873,158.09,158.06,6.3266]
[1724729131036,12.94268759,158.11,158.06,6.3266]
[1724729132140,12.88268759,158.11,158.06,6.3266]
[1724729139181,6.55798759,158.11,158.08,9.85286292]
[1724729139351,6.3219,158.19,158.14,6.3234]
[1724729139547,16.17396292,158.2,158.14,6.3234]
[1724729139746,21.6027,158.21,158.15,7.58720646]
[1724729140066,21.6027,158.21,158.16,6.3227]
[1724729141677,15.282,158.21,158.16,6.3227]
[1724729145967,6.3203,158.22,158.16,6.3227]
[1724729146163,6.3203,158.22,158.14,15.8079]
[1724729146164,16.17276292,158.23,158.17,7.58655517]
[1724729146356,16.17276292,158.23,158.18,6.3218]
[1724729146754,23.612321,158.25,158.19,6.3215]
[1724729146973,20.0,158.24,158.19,6.3215]
[1724729147268,26.3197,158.24,158.18,6.3218]
[1724729147477,6.3199,158.23,158.18,6.3218]
[1724729149378,6.3203,158.22,158.16,22.128]
[1724729149947,6.3203,158.22,158.17,6.3221]
[1724729151685,6.3203,158.22,158.17,7.58636191]
[1724729151858,6.3199,158.23,158.18,6.3216]
[1724729154384,0.822621,158.25,158.19,56.11706382]
[1724729154585,0.822621,158.25,158.24,6.3195]
[1724729154763,0.822621,158.25,158.23,6.3198]
[1724729154958,0.822621,158.25,158.23,7.58363916]
[1724729156199,0.822621,158.25,158.24,6.3195]
[1724729156364,0.322621,158.25,158.24,7.5832882]
[1724729157379,0.322621,158.25,158.24,6.3195]
[1724729167472,0.322621,158.25,158.24,51.3195]
[1724729167799,0.322621,158.25,158.24,61.17236292]
[1724729168003,0.322621,158.25,158.24,62.43584902]
[1724729168981,0.322621,158.25,158.24,82.43584902]
[1724729170208,0.322621,158.25,158.24,81.17236292]
[1724729170502,0.322621,158.25,158.24,82.43559638]
[1724729172285,31.52286292,158.37,158.31,6.3165]
[1724729172590,31.52286292,158.37,158.32,1.26313091]
[1724729173196,6.3147,158.36,158.32,1.26313091]
[1724729174076,21.6697,158.37,158.32,1.26313091]
[1724729174269,15.3553,158.37,158.35,6.315]
[1724729175482,15.3553,158.37,158.35,15.7872]
[1724729176093,21.6696,158.37,158.32,22.1068]
[1724729176288,31.52246292,158.37,158.32,22.1068]
[1724729178073,15.3553,158.37,158.33,6.3157]
[1724729178385,15.3553,158.37,158.34,1.26290896]
[1724729178900,15.95935863,158.37,158.33,6.3157]
[1724729179090,15.3553,158.37,158.33,6.3157]
[1724729179676,9.85286292,158.36,158.33,6.3157]
[1724729180803,15.3553,158.37,158.33,6.3157]
[1724729180979,25.20816292,158.37,158.33,6.3157]
[1724729183691,25.20816292,158.37,158.33,7.57874605]
[1724729183902,9.85286292,158.35,158.32,22.1068]
[1724729187007,31.52276292,158.37,158.33,6.3158]
[1724729187500,25.20816292,158.37,158.33,6.3158]
[1724729187706,25.20816292,158.37,158.34,1.26302745]
[1724729188694,25.20816292,158.37,158.33,6.3158]
[1724729188899,15.3553,158.37,158.34,7.57836191]
[1724729190782,15.3553,158.37,158.34,6.3154]
[1724729191491,15.3553,158.37,158.32,15.7906]
[1724729191698,9.85286292,158.36,158.33,6.3159]
[1724729195705,9.85286292,158.34,158.33,6.3159]
[1724729195922,6.3159,158.33,158.29,15.7935]
[1724729196212,9.85286292,158.3,158.25,22.1159]
[1724729196502,9.85286292,158.28,158.26,6.3186]
[1724729196703,9.85286292,158.28,158.21,15.801]
[1724729197291,9.85286292,158.28,158.25,6.3189]
[1724729197684,9.85286292,158.28,158.26,6.3186]
[1724729198301,22.9365,158.32,158.27,17.05877804]
[1724729199930,22.9365,158.32,158.27,15.7951]
[1724729200691,22.9365,158.32,158.28,6.3178]
[1724729201686,9.85286292,158.31,158.28,6.3178]
[1724729205691,9.85286292,158.29,158.24,15.7987]
[1724729206214,9.85286292,158.29,158.26,6.3187]
[1724729209203,29.2529,158.32,158.27,6.3181]
[1724729209424,9.85286292,158.31,158.27,6.3181]
[1724729213202,16.16956292,158.31,158.26,6.3186]
[1724729213603,16.16956292,158.31,158.24,15.7987]
[1724729213604,9.85286292,158.31,158.27,6.3182]
[1724729214829,9.85286292,158.29,158.27,6.3182]
[1724729215027,9.85286292,158.29,158.24,15.7987]
[1724729215213,9.85286292,158.29,158.25,46.26351479]
[1724729216231,9.85286292,158.29,158.27,6.3183]
[1724729217508,9.85286292,158.29,158.28,6.3179]
[1724729217916,9.85286292,158.29,158.27,22.1136]
[1724729218611,9.85286292,158.29,158.27,15.7953]
[1724729220816,9.85286292,158.29,158.2,31.6054]
[1724729221122,9.85286292,158.29,158.25,6.319]
[1724729221123,9.85286292,158.27,158.25,6.319]
[1724729221328,9.85286292,158.27,158.24,22.1181]
[1724729222628,22.9365,158.32,158.27,6.3181]
[1724729222934,9.85286292,158.31,158.27,6.3181]
[1724729223643,22.9365,158.32,158.28,1.26349396]
[1724729225225,32.78936292,158.32,158.28,1.26349396]
[1724729225738,32.78936292,158.32,158.28,7.58129396]
[1724729228634,32.78936292,158.32,158.28,6.3178]
[1724729229237,39.10566292,158.32,158.28,6.3178]
[1724729229442,0.60405863,158.31,158.27,15.7956]
[1724729229645,9.85286292,158.3,158.27,15.7956]
[1724729230840,9.85286292,158.3,158.27,22.1138]
[1724729232340,9.85286292,158.3,158.27,20.7188]
[1724729241738,9.85286292,158.3,158.28,6.3175]
[1724729241943,32.78936292,158.32,158.28,6.3175]
[1724729243933,32.78936292,158.32,158.27,14.4006]
[1724729243934,9.85286292,158.3,158.27,14.4006]
[1724729244249,9.85286292,158.28,158.25,6.3187]
[1724729245055,9.85286292,158.28,158.26,6.3186]
[1724729247165,9.85286292,158.3,158.26,6.3186]
[1724729247568,9.85286292,158.3,158.27,6.3183]
[1724729247758,32.78936292,158.32,158.29,6.3175]
[1724729248268,16.5679,158.32,158.3,7.58039651]
[1724729248966,16.6349,158.36,158.3,17.05539651]
[1724729249267,16.6349,158.36,158.32,6.3161]
[1724729249459,16.6349,158.36,158.33,1.26306918]
[1724729249766,16.6349,158.36,158.32,7.57916918]
[1724729251766,9.85286292,158.35,158.32,7.57916918]
[1724729255651,9.85286292,158.35,158.33,1.26310776]
[1724729255858,16.6349,158.36,158.33,7.57900776]
[1724729256074,16.6349,158.36,158.33,6.3159]
[1724729258556,16.6349,158.36,158.34,6.3154]
[1724729258872,9.85286292,158.37,158.34,6.3154]
[1724729266578,6.3136,158.39,158.34,6.3154]
[1724729266760,9.85286292,158.37,158.34,6.3154]
[1724729267565,6.3136,158.39,158.34,6.3154]
[1724729267759,9.85286292,158.37,158.34,6.3154]
[1724729267956,16.6349,158.4,158.35,1.26291383]
[1724729268161,16.6349,158.4,158.36,6.3144]
[1724729268478,9.85286292,158.39,158.36,6.3144]
[1724729269286,16.6349,158.4,158.36,6.3144]
[1724729269580,26.48776292,158.4,158.37,6.3143]
[1724729273883,9.85286292,158.4,158.37,6.3143]
[1724729281675,0.822621,158.41,158.4,6.3131]
[1724729282171,0.822621,158.41,158.4,22.0959]
[1724729284184,0.822621,158.41,158.37,15.7855]
[1724729284390,9.85286292,158.4,158.38,6.3135]
[1724729291364,9.85286292,158.4,158.37,15.7855]
[1724729291563,0.822621,158.41,158.37,1.26277307]
[1724729291879,0.822621,158.41,158.4,6.3131]
[1724729292080,0.822621,158.41,158.4,7.57546807]
[1724729294292,0.822621,158.41,158.4,1.26236807]
[1724729294499,0.822621,158.41,158.39,22.0962]
[1724729294681,10.67548392,158.41,158.39,15.7828]
[1724729301182,10.67548392,158.41,158.39,22.0962]
[1724729301510,0.822621,158.41,158.39,22.0962]
[1724729304419,0.822621,158.41,158.4,7.57555562]
[1724729304725,0.822621,158.41,158.4,52.57555562]
[1724729309498,0.822621,158.41,158.4,51.3131]
[1724729309915,0.822621,158.41,158.4,52.57542925]
[1724729313906,0.822621,158.41,158.4,51.3131]
[1724729317922,0.822621,158.41,158.4,52.89445359]
[1724729320118,0.822621,158.41,158.4,51.3131]
[1724729320323,0.822621,158.41,158.4,52.89438522]
[1724729322230,0.822621,158.41,158.4,51.3131]
[1724729325143,0.822621,158.41,158.4,6.3131]
[1724729326617,0.822621,158.41,158.4,51.3131]
[1724729331141,0.822621,158.41,158.4,52.57534758]
[1724729331439,0.822621,158.41,158.4,51.3131]
[1724729332144,0.822621,158.41,158.4,52.57534961]
[1724729335439,0.822621,158.41,158.4,51.3131]
[1724729340734,0.822621,158.41,158.4,6.3131]
[1724729340956,0.322621,158.41,158.4,6.3131]
[1724729342046,0.322621,158.41,158.4,51.3131]
[1724729342243,10.17548392,158.41,158.39,22.0963]
[1724729343139,10.17548392,158.41,158.39,15.7828]
[1724729348045,15.3491,158.4,158.37,6.3142]
[1724729348250,9.85286292,158.39,158.36,22.1013]
[1724729348447,9.85286292,158.37,158.36,15.7867]
[1724729349942,25.20196292,158.4,158.36,22.101]
[1724729357183,15.3491,158.4,158.36,22.101]
[1724729357352,9.85286292,158.39,158.36,22.101]
[1724729367179,15.3491,158.4,158.37,6.3143]
[1724729367385,9.85286292,158.39,158.37,6.3143]
[1724729371185,15.3491,158.4,158.38,6.3139]
[1724729371364,25.20196292,158.4,158.38,6.3139]
[1724729373475,25.20196292,158.4,158.36,15.7867]
[1724729373866,25.20196292,158.4,158.37,6.3142]
[1724729374068,9.85286292,158.38,158.37,6.3142]
[1724729376786,15.3491,158.4,158.36,15.7867]
[1724729376989,10.17548392,158.41,158.38,6.3139]
[1724729377179,0.322621,158.41,158.38,6.3139]
[1724729377368,10.17548392,158.41,158.38,6.3139]
[1724729382392,10.17548392,158.41,158.4,6.3131]
[1724729382393,0.322621,158.41,158.4,6.3131]
[1724729382595,0.322621,158.41,158.4,52.57534794]
[1724729384282,0.322621,158.41,158.4,51.3131]
[1724729387296,0.322621,158.41,158.4,6.3131]
[1724729400715,0.322621,158.41,158.4,52.57546115]
[1724729400920,0.322621,158.41,158.4,62.42832407]
[1724729401103,2.1e-05,158.41,158.4,87.04696026]
[1724729401899,2.1e-05,158.41,158.4,92.96830924]
[1724729402099,2.1e-05,158.41,158.4,87.04696026]
[1724729402512,2.1e-05,158.41,158.4,77.19409734]
[1724729402710,2.1e-05,158.41,158.4,75.93173619]